[Event "*** Titled Tuesday Blitz"]
[Site "Chess.com"]
[Date "2021.03.16"]
[Round "7"]
[White "Aradhya2000"]
[Black "kunaevchess"]
[Result "1-0"]
[WhiteElo "2577"]
[BlackElo "2339"]
[TimeControl "180+1"]
[EndTime "11:17:34 PDT"]
[Termination "Aradhya2000 won by resignation"]

1. d4 {[%clk 0:03:00.9]} 1... Nf6 {[%clk 0:02:59.6]} 2. c4 {[%clk 0:03:00.7]}
2... e6 {[%clk 0:02:59.9]} 3. Nf3 {[%clk 0:03:00.9]} 3... d5 {[%clk 0:03:00.2]}
4. Nc3 {[%clk 0:03:00.5]} 4... Bb4 {[%clk 0:03:00.5]} 5. Qb3 {[%clk 0:02:59.2]}
5... c5 {[%clk 0:02:59.3]} 6. dxc5 {[%clk 0:02:58.7]} 6... Qa5 {[%clk 0:02:31]}
7. Bd2 {[%clk 0:02:42]} 7... Qxc5 {[%clk 0:02:19.5]} 8. cxd5 {[%clk 0:02:40.8]}
8... exd5 {[%clk 0:02:06.9]} 9. Rc1 {[%clk 0:02:30.3]} 9... O-O {[%clk
0:02:05.3]} 10. e3 {[%clk 0:02:29.6]} 10... Nc6 {[%clk 0:01:59.9]} 11. a3 {[%clk
0:02:28.4]} 11... Bxc3 {[%clk 0:01:54.8]} 12. Bxc3 {[%clk 0:02:28.1]} 12... Bg4
{[%clk 0:01:47.4]} 13. Qd1 {[%clk 0:02:09.3]} 13... Bxf3 {[%clk 0:01:21.3]} 14.
gxf3 {[%clk 0:02:08.7]} 14... Qd6 {[%clk 0:01:18.9]} 15. Bb5 {[%clk 0:02:07.7]}
15... Rad8 {[%clk 0:01:14.7]} 16. Bxc6 {[%clk 0:02:06]} 16... bxc6 {[%clk
0:01:13.7]} 17. Bb4 {[%clk 0:02:05.6]} 17... Qe6 {[%clk 0:01:05.9]} 18. Bxf8
{[%clk 0:02:05.3]} 18... Rxf8 {[%clk 0:01:06.2]} 19. Qd4 {[%clk 0:02:04.5]}
19... h6 {[%clk 0:00:59.1]} 20. Ke2 {[%clk 0:01:48.6]} 20... Rb8 {[%clk
0:00:45]} 21. b4 {[%clk 0:01:35.4]} 21... Rb6 {[%clk 0:00:40.1]} 22. Rhg1 {[%clk
0:01:32]} 22... Qf5 {[%clk 0:00:34.3]} 23. Rc3 {[%clk 0:01:01.8]} 23... g6
{[%clk 0:00:33]} 24. Qf4 {[%clk 0:00:53.4]} 24... Qe6 {[%clk 0:00:18.3]} 25. h4
{[%clk 0:00:39.3]} 25... a5 {[%clk 0:00:14.8]} 26. Qd4 {[%clk 0:00:32.4]} 26...
Ra6 {[%clk 0:00:12.8]} 27. Rgc1 {[%clk 0:00:24.4]} 27... axb4 {[%clk 0:00:12.5]}
28. axb4 {[%clk 0:00:25.3]} 28... Nd7 {[%clk 0:00:09]} 29. b5 {[%clk 0:00:19.4]}
29... Ra2+ {[%clk 0:00:08.5]} 30. R1c2 {[%clk 0:00:18.9]} 30... c5 {[%clk
0:00:08.1]} 31. Rxc5 {[%clk 0:00:18.7]} 31... Nxc5 {[%clk 0:00:02.7]} 32. Rxa2
{[%clk 0:00:18.6]} 32... Nb3 {[%clk 0:00:03.2]} 33. Ra8+ {[%clk 0:00:18.2]} 1-0

[Event "*** Titled Tuesday Blitz"]
[Site "Chess.com"]
[Date "2021.03.16"]
[Round "7"]
[White "Supernotar"]
[Black "zajka-molotok"]
[Result "1-0"]
[WhiteElo "2722"]
[BlackElo "2529"]
[TimeControl "180+1"]
[EndTime "11:17:35 PDT"]
[Termination "Supernotar won by resignation"]

1. d4 {[%clk 0:03:00.9]} 1... d5 {[%clk 0:02:56.5]} 2. c4 {[%clk 0:03:01.1]}
2... dxc4 {[%clk 0:02:56.5]} 3. e3 {[%clk 0:03:01.1]} 3... Nf6 {[%clk
0:02:55.5]} 4. Bxc4 {[%clk 0:03:01.2]} 4... e6 {[%clk 0:02:55.6]} 5. Nf3 {[%clk
0:03:01.4]} 5... c5 {[%clk 0:02:55.6]} 6. O-O {[%clk 0:03:01.3]} 6... a6 {[%clk
0:02:54.2]} 7. Qe2 {[%clk 0:02:55]} 7... b5 {[%clk 0:02:50.2]} 8. Bd3 {[%clk
0:02:54.3]} 8... cxd4 {[%clk 0:02:43.6]} 9. exd4 {[%clk 0:02:48.3]} 9... Bb7
{[%clk 0:02:42.1]} 10. a4 {[%clk 0:02:45.1]} 10... bxa4 {[%clk 0:02:34.9]} 11.
Rxa4 {[%clk 0:02:36.5]} 11... Be7 {[%clk 0:02:33.7]} 12. Nc3 {[%clk 0:02:32.7]}
12... O-O {[%clk 0:02:33.7]} 13. Bg5 {[%clk 0:02:29.8]} 13... h6 {[%clk
0:02:21.8]} 14. Bh4 {[%clk 0:02:26.5]} 14... Nbd7 {[%clk 0:02:20.2]} 15. Bxa6
{[%clk 0:02:17.9]} 15... Bxa6 {[%clk 0:02:14.9]} 16. Rxa6 {[%clk 0:02:18.8]}
16... Rxa6 {[%clk 0:02:13.5]} 17. Qxa6 {[%clk 0:02:19.7]} 17... Qb8 {[%clk
0:02:11.5]} 18. Qe2 {[%clk 0:02:11.6]} 18... Qb4 {[%clk 0:02:08.6]} 19. Rd1
{[%clk 0:01:57.3]} 19... Nb6 {[%clk 0:02:01.5]} 20. Ne5 {[%clk 0:01:49.7]} 20...
Nbd5 {[%clk 0:01:48.9]} 21. Nxd5 {[%clk 0:01:38.4]} 21... Nxd5 {[%clk
0:01:49.8]} 22. Nc6 {[%clk 0:01:36.5]} 22... Qb7 {[%clk 0:01:45.3]} 23. Nxe7+
{[%clk 0:01:33.7]} 23... Nxe7 {[%clk 0:01:45.4]} 24. Bxe7 {[%clk 0:01:33.6]}
24... Qxe7 {[%clk 0:01:46.3]} 25. d5 {[%clk 0:01:33.3]} 25... Rd8 {[%clk
0:01:38.8]} 26. dxe6 {[%clk 0:01:28.1]} 26... Rxd1+ {[%clk 0:01:38.3]} 27. Qxd1
{[%clk 0:01:29]} 27... Qxe6 {[%clk 0:01:38.6]} 28. b4 {[%clk 0:01:22.1]} 28...
Qc4 {[%clk 0:01:36.5]} 29. Qb1 {[%clk 0:01:15.5]} 29... Qb5 {[%clk 0:01:36.2]}
30. h3 {[%clk 0:01:11.6]} 30... h5 {[%clk 0:01:36.1]} 31. h4 {[%clk 0:01:08.5]}
31... g6 {[%clk 0:01:34.3]} 32. g3 {[%clk 0:01:08.1]} 32... Kg7 {[%clk
0:01:23.1]} 33. Qb2+ {[%clk 0:01:06.2]} 33... Kg8 {[%clk 0:01:22.9]} 34. Qd4
{[%clk 0:01:03.2]} 34... Qe2 {[%clk 0:01:21.4]} 35. Qc5 {[%clk 0:00:58.3]} 35...
Qe1+ {[%clk 0:01:09.8]} 36. Kh2 {[%clk 0:00:56.8]} 36... Qe2 {[%clk 0:01:07.2]}
37. b5 {[%clk 0:00:54.1]} 37... Qb2 {[%clk 0:01:07]} 38. b6 {[%clk 0:00:52.3]}
38... Kg7 {[%clk 0:01:07.2]} 39. Kg2 {[%clk 0:00:49.2]} 39... Qb1 {[%clk
0:01:06.5]} 40. Qd4+ {[%clk 0:00:46.2]} 40... Kg8 {[%clk 0:01:04.9]} 41. Qd8+
{[%clk 0:00:45.5]} 41... Kh7 {[%clk 0:01:04.1]} 42. Qf6 {[%clk 0:00:40.3]} 42...
Kg8 {[%clk 0:00:56.4]} 43. Qc6 {[%clk 0:00:36.2]} 43... Kh7 {[%clk 0:00:46.4]}
44. b7 {[%clk 0:00:34.4]} 44... Kg7 {[%clk 0:00:41.4]} 45. Qc7 {[%clk
0:00:27.4]} 45... Qe4+ {[%clk 0:00:40.3]} 46. Kh2 {[%clk 0:00:26]} 46... Qf3
{[%clk 0:00:35.1]} 47. Qb6 {[%clk 0:00:23.4]} 47... g5 {[%clk 0:00:34.6]} 48.
b8=Q {[%clk 0:00:20.3]} 1-0

[Event "*** Titled Tuesday Blitz"]
[Site "Chess.com"]
[Date "2021.03.16"]
[Round "7"]
[White "Beltraxtor"]
[Black "GMKrikor"]
[Result "0-1"]
[WhiteElo "2595"]
[BlackElo "2757"]
[TimeControl "180+1"]
[EndTime "11:17:37 PDT"]
[Termination "GMKrikor won on time"]

1. d4 {[%clk 0:02:57.8]} 1... Nf6 {[%clk 0:02:59.5]} 2. Bf4 {[%clk 0:02:57.5]}
2... c5 {[%clk 0:02:57.5]} 3. c3 {[%clk 0:02:49.6]} 3... g6 {[%clk 0:02:56.9]}
4. e3 {[%clk 0:02:48.9]} 4... Bg7 {[%clk 0:02:55.7]} 5. Nf3 {[%clk 0:02:49.4]}
5... O-O {[%clk 0:02:46.3]} 6. Nbd2 {[%clk 0:02:48.3]} 6... d6 {[%clk
0:02:42.7]} 7. dxc5 {[%clk 0:02:48.1]} 7... dxc5 {[%clk 0:02:42.1]} 8. h3 {[%clk
0:02:48.4]} 8... Nd5 {[%clk 0:02:40.7]} 9. Bg3 {[%clk 0:02:44.4]} 9... Nc6
{[%clk 0:02:40.5]} 10. Be2 {[%clk 0:02:42.2]} 10... Bxc3 {[%clk 0:02:37.7]} 11.
bxc3 {[%clk 0:02:38.8]} 11... Nxc3 {[%clk 0:02:38.6]} 12. Qb3 {[%clk 0:02:24]}
12... Nxe2 {[%clk 0:02:36]} 13. Kxe2 {[%clk 0:02:24.9]} 13... b6 {[%clk
0:02:34.3]} 14. Rhd1 {[%clk 0:02:19.1]} 14... Ba6+ {[%clk 0:02:30.3]} 15. Ke1
{[%clk 0:02:18.9]} 15... Qc8 {[%clk 0:02:20.8]} 16. a3 {[%clk 0:02:15.1]} 16...
Rd8 {[%clk 0:02:13.9]} 17. Rac1 {[%clk 0:01:57.4]} 17... Qf5 {[%clk 0:01:59.6]}
18. Nc4 {[%clk 0:01:33.9]} 18... Qe6 {[%clk 0:01:44.9]} 19. Rxd8+ {[%clk
0:01:27.5]} 19... Rxd8 {[%clk 0:01:43.9]} 20. Qc3 {[%clk 0:01:28.1]} 20... f6
{[%clk 0:01:31.5]} 21. Nfd2 {[%clk 0:01:15.4]} 21... Qf5 {[%clk 0:01:25.6]} 22.
e4 {[%clk 0:00:59.5]} 22... Qe6 {[%clk 0:01:24.7]} 23. f3 {[%clk 0:00:58.8]}
23... Kf7 {[%clk 0:01:01.7]} 24. Bf4 {[%clk 0:00:50.3]} 24... g5 {[%clk
0:00:49.4]} 25. Be3 {[%clk 0:00:49.4]} 25... h5 {[%clk 0:00:49.6]} 26. Kf2
{[%clk 0:00:48.7]} 26... Qd7 {[%clk 0:00:40.2]} 27. e5 {[%clk 0:00:37.4]} 27...
b5 {[%clk 0:00:35.3]} 28. exf6 {[%clk 0:00:32.5]} 28... exf6 {[%clk 0:00:32.9]}
29. Na5 {[%clk 0:00:20.5]} 29... Ne5 {[%clk 0:00:32]} 30. Kg1 {[%clk 0:00:20.9]}
30... Nd3 {[%clk 0:00:27.4]} 31. Rd1 {[%clk 0:00:13.8]} 31... Qe6 {[%clk
0:00:24.4]} 32. Nf1 {[%clk 0:00:11.4]} 32... b4 {[%clk 0:00:24]} 33. axb4 {[%clk
0:00:10.9]} 33... cxb4 {[%clk 0:00:24.9]} 34. Qc6 {[%clk 0:00:06.1]} 34... Bc8
{[%clk 0:00:15.8]} 0-1

[Event "*** Titled Tuesday Blitz"]
[Site "Chess.com"]
[Date "2021.03.16"]
[Round "7"]
[White "mirochka"]
[Black "DanilovVladimir"]
[Result "0-1"]
[WhiteElo "2236"]
[BlackElo "2427"]
[TimeControl "180+1"]
[EndTime "11:17:44 PDT"]
[Termination "DanilovVladimir won by checkmate"]

1. e4 {[%clk 0:02:37]} 1... e5 {[%clk 0:02:58.6]} 2. Nf3 {[%clk 0:02:36]} 2...
Nc6 {[%clk 0:02:57.7]} 3. d4 {[%clk 0:02:35.8]} 3... exd4 {[%clk 0:02:57.6]} 4.
c3 {[%clk 0:02:36.4]} 4... d5 {[%clk 0:02:29.9]} 5. exd5 {[%clk 0:02:34.8]} 5...
Qxd5 {[%clk 0:02:29.1]} 6. cxd4 {[%clk 0:02:34.4]} 6... Nf6 {[%clk 0:02:28.1]}
7. Nc3 {[%clk 0:02:29.9]} 7... Bb4 {[%clk 0:02:28]} 8. Be2 {[%clk 0:02:26.7]}
8... O-O {[%clk 0:01:54.5]} 9. O-O {[%clk 0:02:25.1]} 9... Bxc3 {[%clk 0:01:55]}
10. bxc3 {[%clk 0:02:25.4]} 10... Bg4 {[%clk 0:01:53.6]} 11. Rb1 {[%clk
0:02:23]} 11... Na5 {[%clk 0:01:43.2]} 12. Rb5 {[%clk 0:02:14.4]} 12... Qxa2
{[%clk 0:01:38.5]} 13. Bd3 {[%clk 0:01:08.2]} 13... c6 {[%clk 0:01:27.8]} 14.
Rg5 {[%clk 0:01:06.8]} 14... h6 {[%clk 0:01:27.6]} 15. Re5 {[%clk 0:00:53.1]}
15... Nd7 {[%clk 0:00:49.9]} 16. Re7 {[%clk 0:00:50.4]} 16... Qd5 {[%clk
0:00:43]} 17. Bb1 {[%clk 0:00:38.6]} 17... Nf6 {[%clk 0:00:28.5]} 18. Qd3 {[%clk
0:00:34.3]} 18... Bxf3 {[%clk 0:00:15.3]} 19. gxf3 {[%clk 0:00:35.2]} 19... Qd6
{[%clk 0:00:13]} 20. Rfe1 {[%clk 0:00:31.8]} 20... b5 {[%clk 0:00:12.6]} 21. Kh1
{[%clk 0:00:26]} 21... Nc4 {[%clk 0:00:12.8]} 22. Rd1 {[%clk 0:00:17.7]} 22...
Qxe7 {[%clk 0:00:12.2]} 23. Rg1 {[%clk 0:00:17.8]} 23... Kh8 {[%clk 0:00:12.1]}
24. Bxh6 {[%clk 0:00:17.3]} 24... gxh6 {[%clk 0:00:12]} 25. Qf5 {[%clk
0:00:14.9]} 25... Rg8 {[%clk 0:00:08.8]} 26. Qf4 {[%clk 0:00:15]} 26... Rxg1+
{[%clk 0:00:08.4]} 27. Kxg1 {[%clk 0:00:15.9]} 27... Qe1+ {[%clk 0:00:07.6]} 28.
Kg2 {[%clk 0:00:15.9]} 28... Rg8+ {[%clk 0:00:08.1]} 29. Kh3 {[%clk 0:00:16.1]}
29... Qxb1 {[%clk 0:00:08.1]} 30. Qxf6+ {[%clk 0:00:15]} 30... Rg7 {[%clk
0:00:06.5]} 31. Qd8+ {[%clk 0:00:14.2]} 31... Kh7 {[%clk 0:00:06.8]} 32. Qf6
{[%clk 0:00:14.1]} 32... Qg6 {[%clk 0:00:06.5]} 33. Qxg6+ {[%clk 0:00:13]} 33...
Rxg6 {[%clk 0:00:06.6]} 34. f4 {[%clk 0:00:13.9]} 34... a5 {[%clk 0:00:06.8]}
35. f5 {[%clk 0:00:14.6]} 35... Rf6 {[%clk 0:00:07.7]} 36. Kg4 {[%clk
0:00:13.9]} 36... a4 {[%clk 0:00:08.2]} 37. Kf4 {[%clk 0:00:14.8]} 37... a3
{[%clk 0:00:08.8]} 38. Ke4 {[%clk 0:00:15.1]} 38... a2 {[%clk 0:00:09.3]} 39. f4
{[%clk 0:00:15.9]} 39... a1=Q {[%clk 0:00:09.5]} 40. Kf3 {[%clk 0:00:16.8]}
40... Qf1+ {[%clk 0:00:09.6]} 41. Kg3 {[%clk 0:00:17.7]} 41... Rxf5 {[%clk
0:00:09.4]} 42. Kg4 {[%clk 0:00:18.6]} 42... Rxf4+ {[%clk 0:00:09.6]} 43. Kg3
{[%clk 0:00:17.3]} 43... Qf3# {[%clk 0:00:10]} 0-1

[Event "*** Titled Tuesday Blitz"]
[Site "Chess.com"]
[Date "2021.03.16"]
[Round "7"]
[White "Kobalia"]
[Black "I_Enchev"]
[Result "1-0"]
[WhiteElo "2740"]
[BlackElo "2560"]
[TimeControl "180+1"]
[EndTime "11:17:45 PDT"]
[Termination "Kobalia won by resignation"]

1. e4 {[%clk 0:03:00.9]} 1... c6 {[%clk 0:02:59.6]} 2. Nf3 {[%clk 0:02:59]} 2...
d5 {[%clk 0:02:59.7]} 3. exd5 {[%clk 0:02:59.3]} 3... cxd5 {[%clk 0:02:59.8]} 4.
Ne5 {[%clk 0:02:59.7]} 4... Nf6 {[%clk 0:02:58.4]} 5. d4 {[%clk 0:02:58.8]} 5...
Nc6 {[%clk 0:02:55.7]} 6. Bb5 {[%clk 0:02:57.8]} 6... Bd7 {[%clk 0:02:55.1]} 7.
Nxd7 {[%clk 0:02:57.2]} 7... Qxd7 {[%clk 0:02:54.6]} 8. c3 {[%clk 0:02:56.9]}
8... e6 {[%clk 0:02:54.1]} 9. O-O {[%clk 0:02:55.5]} 9... Bd6 {[%clk 0:02:52.7]}
10. Nd2 {[%clk 0:02:55.2]} 10... O-O {[%clk 0:02:51.8]} 11. Nf3 {[%clk
0:02:54.8]} 11... a6 {[%clk 0:02:51.5]} 12. Bd3 {[%clk 0:02:53.7]} 12... Ne4
{[%clk 0:02:46.1]} 13. Re1 {[%clk 0:02:24.1]} 13... f5 {[%clk 0:02:45.1]} 14.
Nd2 {[%clk 0:02:23.8]} 14... Qc7 {[%clk 0:02:39.7]} 15. Nf1 {[%clk 0:02:23.2]}
15... Rae8 {[%clk 0:02:35.6]} 16. f3 {[%clk 0:02:22.5]} 16... Nf6 {[%clk
0:02:35.6]} 17. a4 {[%clk 0:02:17.5]} 17... h6 {[%clk 0:02:16.6]} 18. Bd2 {[%clk
0:02:15.7]} 18... g5 {[%clk 0:02:06.6]} 19. Rc1 {[%clk 0:02:14.4]} 19... Qb6
{[%clk 0:02:01.3]} 20. Kh1 {[%clk 0:02:06.7]} 20... Kg7 {[%clk 0:01:58.9]} 21.
b4 {[%clk 0:02:05]} 21... Re7 {[%clk 0:01:46.6]} 22. Ne3 {[%clk 0:02:02.6]}
22... f4 {[%clk 0:01:36.8]} 23. Nf1 {[%clk 0:01:39.9]} 23... Rc8 {[%clk
0:01:29.9]} 24. Bb1 {[%clk 0:01:38.3]} 24... e5 {[%clk 0:01:25.9]} 25. dxe5
{[%clk 0:01:27.5]} 25... Nxe5 {[%clk 0:01:18.1]} 26. Qc2 {[%clk 0:01:26.9]}
26... Qd8 {[%clk 0:01:14.2]} 27. Rxe5 {[%clk 0:01:14.8]} 27... Bxe5 {[%clk
0:01:13.1]} 28. Qg6+ {[%clk 0:01:14.5]} 28... Kh8 {[%clk 0:01:07.6]} 29. Qxh6+
{[%clk 0:01:07.1]} 29... Nh7 {[%clk 0:01:07.2]} 30. Re1 {[%clk 0:01:03.7]} 30...
Qf8 {[%clk 0:01:02.6]} 31. Qh5 {[%clk 0:00:58.4]} 31... Bf6 {[%clk 0:00:55.2]}
32. h4 {[%clk 0:00:47.7]} 32... Qg7 {[%clk 0:00:44.5]} 33. Nh2 {[%clk
0:00:40.3]} 33... Rxe1+ {[%clk 0:00:39.1]} 34. Bxe1 {[%clk 0:00:41.2]} 34...
gxh4 {[%clk 0:00:31.6]} 35. Ng4 {[%clk 0:00:39.6]} 35... Rf8 {[%clk 0:00:27.6]}
36. c4 {[%clk 0:00:33.8]} 36... d4 {[%clk 0:00:22.5]} 37. c5 {[%clk 0:00:31.8]}
37... Bd8 {[%clk 0:00:21.3]} 38. Bf2 {[%clk 0:00:28.2]} 38... Kg8 {[%clk
0:00:09.1]} 39. Bxd4 {[%clk 0:00:25.9]} 39... Bf6 {[%clk 0:00:07.1]} 40. Bxh7+
{[%clk 0:00:23.1]} 40... Qxh7 {[%clk 0:00:07.1]} 41. Nxf6+ {[%clk 0:00:22.7]}
41... Rxf6 {[%clk 0:00:06.6]} 42. Qxh7+ {[%clk 0:00:22.6]} 42... Kxh7 {[%clk
0:00:05.8]} 43. Bxf6 {[%clk 0:00:23]} 1-0

[Event "*** Titled Tuesday Blitz"]
[Site "Chess.com"]
[Date "2021.03.16"]
[Round "7"]
[White "PavelChernomordik"]
[Black "elohunter1999"]
[Result "1-0"]
[WhiteElo "2412"]
[BlackElo "2589"]
[TimeControl "180+1"]
[EndTime "11:17:46 PDT"]
[Termination "PavelChernomordik won by checkmate"]

1. e4 {[%clk 0:03:00.9]} 1... c6 {[%clk 0:02:58.1]} 2. Nc3 {[%clk 0:02:58.6]}
2... d5 {[%clk 0:02:59]} 3. Qf3 {[%clk 0:02:57.9]} 3... e5 {[%clk 0:02:54.7]} 4.
exd5 {[%clk 0:02:53.6]} 4... Nf6 {[%clk 0:02:54.7]} 5. dxc6 {[%clk 0:02:48]}
5... Nxc6 {[%clk 0:02:54.8]} 6. Bb5 {[%clk 0:02:41.4]} 6... Bd7 {[%clk
0:02:53.7]} 7. Qd1 {[%clk 0:02:37.7]} 7... Bc5 {[%clk 0:02:52]} 8. Nf3 {[%clk
0:02:34.4]} 8... O-O {[%clk 0:02:42.1]} 9. d3 {[%clk 0:02:28.2]} 9... a6 {[%clk
0:02:25.9]} 10. Bxc6 {[%clk 0:02:21]} 10... Bxc6 {[%clk 0:02:26.8]} 11. O-O
{[%clk 0:02:21]} 11... Qc7 {[%clk 0:02:20.9]} 12. Bg5 {[%clk 0:02:18.3]} 12...
Nd5 {[%clk 0:02:06.7]} 13. Ne4 {[%clk 0:02:08.8]} 13... Ba7 {[%clk 0:02:02.8]}
14. Re1 {[%clk 0:02:01.4]} 14... f5 {[%clk 0:01:57.9]} 15. Ng3 {[%clk
0:01:57.4]} 15... Rae8 {[%clk 0:01:57.5]} 16. d4 {[%clk 0:01:35.9]} 16... exd4
{[%clk 0:01:42.8]} 17. Rxe8 {[%clk 0:01:33.7]} 17... Rxe8 {[%clk 0:01:42.9]} 18.
Nxf5 {[%clk 0:01:30.7]} 18... h6 {[%clk 0:01:16.4]} 19. Bh4 {[%clk 0:01:29.5]}
19... Qf4 {[%clk 0:01:13.2]} 20. N5xd4 {[%clk 0:01:22.5]} 20... Bd7 {[%clk
0:00:46.1]} 21. Bg3 {[%clk 0:01:20.1]} 21... Qe4 {[%clk 0:00:43.2]} 22. c3
{[%clk 0:01:16.2]} 22... Bg4 {[%clk 0:00:42.1]} 23. h3 {[%clk 0:01:11.3]} 23...
Bh5 {[%clk 0:00:41.9]} 24. Qb3 {[%clk 0:01:05.4]} 24... Kh8 {[%clk 0:00:36.6]}
25. Qxb7 {[%clk 0:00:58.5]} 25... Re7 {[%clk 0:00:36.6]} 26. Qa8+ {[%clk
0:00:53.6]} 26... Kh7 {[%clk 0:00:36.4]} 27. Re1 {[%clk 0:00:52.1]} 27... Bxf3
{[%clk 0:00:17.4]} 28. Nxf3 {[%clk 0:00:42.6]} 28... Qc2 {[%clk 0:00:05.3]} 29.
Rxe7 {[%clk 0:00:38.7]} 29... Nxe7 {[%clk 0:00:06.2]} 30. Qxa7 {[%clk
0:00:36.7]} 30... Nf5 {[%clk 0:00:06.8]} 31. Qxa6 {[%clk 0:00:33.1]} 31... h5
{[%clk 0:00:06.4]} 32. Qe6 {[%clk 0:00:29.9]} 32... Qc1+ {[%clk 0:00:04.9]} 33.
Kh2 {[%clk 0:00:29.1]} 33... g6 {[%clk 0:00:04.9]} 34. Qf7+ {[%clk 0:00:25.3]}
34... Kh6 {[%clk 0:00:05.2]} 35. Ne5 {[%clk 0:00:21.5]} 35... Qg5 {[%clk
0:00:03.4]} 36. h4 {[%clk 0:00:19.6]} 36... Nxh4 {[%clk 0:00:03.2]} 37. Qg8
{[%clk 0:00:18.3]} 37... Nf5 {[%clk 0:00:01.4]} 38. Qh8# {[%clk 0:00:17.7]} 1-0

[Event "*** Titled Tuesday Blitz"]
[Site "Chess.com"]
[Date "2021.03.16"]
[Round "7"]
[White "rynos0411"]
[Black "GM4life"]
[Result "1-0"]
[WhiteElo "2506"]
[BlackElo "2334"]
[TimeControl "180+1"]
[EndTime "11:17:49 PDT"]
[Termination "rynos0411 won by resignation"]

1. e4 {[%clk 0:02:52.2]} 1... c5 {[%clk 0:02:59.7]} 2. c3 {[%clk 0:02:49.8]}
2... Nf6 {[%clk 0:02:59.3]} 3. e5 {[%clk 0:02:48.1]} 3... Nd5 {[%clk 0:02:59.8]}
4. d4 {[%clk 0:02:48.2]} 4... d6 {[%clk 0:02:58.8]} 5. Nf3 {[%clk 0:02:45.9]}
5... cxd4 {[%clk 0:02:58.5]} 6. cxd4 {[%clk 0:02:45]} 6... Nc6 {[%clk
0:02:58.5]} 7. Bc4 {[%clk 0:02:43.8]} 7... Nb6 {[%clk 0:02:57.9]} 8. Bb5 {[%clk
0:02:44.1]} 8... dxe5 {[%clk 0:02:58]} 9. Nxe5 {[%clk 0:02:43.8]} 9... Bd7
{[%clk 0:02:58]} 10. Nxd7 {[%clk 0:02:38.8]} 10... Qxd7 {[%clk 0:02:58.9]} 11.
Be3 {[%clk 0:02:30.9]} 11... Rd8 {[%clk 0:02:58.6]} 12. O-O {[%clk 0:02:30]}
12... e6 {[%clk 0:02:58]} 13. Nc3 {[%clk 0:02:29.5]} 13... Be7 {[%clk
0:02:56.8]} 14. Re1 {[%clk 0:02:26.2]} 14... O-O {[%clk 0:02:56.5]} 15. Qd3
{[%clk 0:02:05.8]} 15... Nd5 {[%clk 0:02:49.5]} 16. Rad1 {[%clk 0:02:02.9]}
16... a6 {[%clk 0:02:46.7]} 17. Ba4 {[%clk 0:01:58.7]} 17... Ncb4 {[%clk
0:02:33.9]} 18. Qd2 {[%clk 0:01:35.5]} 18... b5 {[%clk 0:02:17.6]} 19. Bb3
{[%clk 0:01:35.6]} 19... Rc8 {[%clk 0:02:10.1]} 20. Ne4 {[%clk 0:01:31]} 20...
a5 {[%clk 0:01:59.5]} 21. Nc5 {[%clk 0:01:27.8]} 21... Qc6 {[%clk 0:01:48.5]}
22. Rc1 {[%clk 0:01:23.3]} 22... Qa8 {[%clk 0:01:29.5]} 23. a3 {[%clk
0:01:20.4]} 23... a4 {[%clk 0:01:17.4]} 24. Bd1 {[%clk 0:01:16]} 24... Na6
{[%clk 0:00:54.3]} 25. Bf3 {[%clk 0:01:06.2]} 25... Rfd8 {[%clk 0:00:49.3]} 26.
Nd3 {[%clk 0:00:56.5]} 26... b4 {[%clk 0:00:39.8]} 27. axb4 {[%clk 0:00:54.9]}
27... Rxc1 {[%clk 0:00:38.2]} 28. Rxc1 {[%clk 0:00:54.9]} 28... Naxb4 {[%clk
0:00:32.4]} 29. Nxb4 {[%clk 0:00:53]} 29... Bxb4 {[%clk 0:00:30.4]} 30. Qc2
{[%clk 0:00:26.4]} 30... h6 {[%clk 0:00:23.3]} 31. Ra1 {[%clk 0:00:25.7]} 31...
Rc8 {[%clk 0:00:18.4]} 32. Qxa4 {[%clk 0:00:22.1]} 32... Qxa4 {[%clk 0:00:15.6]}
33. Rxa4 {[%clk 0:00:23]} 33... Nxe3 {[%clk 0:00:15.2]} 34. fxe3 {[%clk
0:00:23.5]} 34... Rc1+ {[%clk 0:00:15.1]} 35. Kf2 {[%clk 0:00:22.6]} 35... Rc2+
{[%clk 0:00:15.7]} 36. Kg3 {[%clk 0:00:18.7]} 36... Rxb2 {[%clk 0:00:16.2]} 37.
h3 {[%clk 0:00:19]} 37... Kh7 {[%clk 0:00:16.1]} 38. Be4+ {[%clk 0:00:18.6]}
38... f5 {[%clk 0:00:15.8]} 39. Bf3 {[%clk 0:00:17.4]} 39... Bd6+ {[%clk
0:00:16.3]} 40. Kh4 {[%clk 0:00:15.6]} 40... g5+ {[%clk 0:00:15.9]} 41. Kh5
{[%clk 0:00:16.1]} 41... Rc2 {[%clk 0:00:14.1]} 42. Ra6 {[%clk 0:00:14.9]} 42...
Rc7 {[%clk 0:00:14.5]} 43. Rxd6 {[%clk 0:00:14.8]} 43... g4 {[%clk 0:00:14.8]}
44. hxg4 {[%clk 0:00:15.2]} 44... Rg7 {[%clk 0:00:15]} 45. gxf5 {[%clk
0:00:14.7]} 45... Rg5+ {[%clk 0:00:15.6]} 46. Kh4 {[%clk 0:00:15.1]} 46... Rxf5
{[%clk 0:00:16.1]} 47. Be4 {[%clk 0:00:15.5]} 47... Kg6 {[%clk 0:00:15.9]} 48.
Rxe6+ {[%clk 0:00:12.4]} 1-0